fUSD/lending_fUSD_20240724
["ID","MTS","AMOUNT","RATE_DAILY","PERIOD"]
[333098300,1721862649828,-500.0,0.00010979,2]
[333098301,1721862649837,-500.0,0.00010979,2]
[333098302,1721862649847,-500.0,0.00010979,2]
[333098303,1721862649858,-500.0,0.00010979,2]
[333098304,1721862649869,-500.0,0.00010979,2]
[333098305,1721862649880,-500.0,0.00010979,2]
[333098306,1721862649890,-500.0,0.00010979,2]
[333098307,1721862649900,-500.0,0.00010979,2]
[333098308,1721862649911,-500.0,0.00010979,2]
[333098309,1721862649921,-500.0,0.00010979,2]
[333098310,1721862649932,-500.0,0.00010979,2]
[333098311,1721862649941,-500.0,0.00010979,2]
[333098312,1721862649951,-500.0,0.00010979,2]
[333098313,1721862649961,-500.0,0.00010979,2]
[333098314,1721862649970,-500.0,0.00010979,2]
[333098315,1721862649980,-500.0,0.00010979,2]
[333098316,1721862649990,-500.0,0.00010979,2]
[333098317,1721862650001,-500.0,0.00010979,2]
[333098318,1721862650011,-500.0,0.00010979,2]
[333098319,1721862650020,-500.0,0.00010979,2]
[333098320,1721862650030,-512.64,0.00010979,2]
[333098321,1721862650039,-386.11258677,0.00010979,2]
[333098322,1721863083635,150.12,8.219e-05,2]
[333098323,1721863338090,500.0,9.019e-05,2]
[333098324,1721863368214,200.0,9.042e-05,2]
[333098325,1721863385409,160.04731693,8.219e-05,2]
[333098326,1721863415421,160.04731693,8.219e-05,2]
[333098327,1721863535416,160.04731693,8.219e-05,2]
[333098329,1721863613403,150.12,8.219e-05,2]
[333098345,1721863653420,160.04731693,8.219e-05,2]
[333098346,1721863683420,160.04731693,8.219e-05,2]
[333098408,1721863793437,160.04731693,8.219e-05,2]
[333098417,1721863832038,-250.0,9.071e-05,2]
[333098419,1721863832051,-156.70303738,9.08e-05,2]
[333098420,1721863832066,-173.29696262,9.08e-05,2]
[333098421,1721863832076,-427.2,9.081e-05,2]
[333098422,1721863832085,-300.0,9.083e-05,2]
[333098423,1721863832095,-3564.17532578,9.084e-05,2]
[333098424,1721863832122,-683.03046372,9.084e-05,2]
[333098425,1721863832134,-264.63989011,9.084e-05,2]
[333098426,1721863832147,-599.46000008,9.084e-05,2]
[333098427,1721863832158,-18788.69432031,9.084e-05,2]
[333098428,1721863832168,-572.8,9.156e-05,2]
[333098429,1721863832178,-23140.76,9.176e-05,2]
[333098430,1721863832187,-654.12,9.458e-05,2]
[333098431,1721863832196,-654.12,9.461e-05,2]
[333098432,1721863832206,-654.12,9.463e-05,2]
[333098433,1721863832215,-654.12,9.466e-05,2]
[333098434,1721863832224,-654.12,9.468e-05,2]
[333098435,1721863832233,-654.12,9.471e-05,2]
[333098436,1721863832242,-654.12,9.473e-05,2]
[333098437,1721863832251,-150.0,9.475e-05,2]
[333098438,1721863832260,-654.12,9.476e-05,2]
[333098439,1721863832270,-654.12,9.478e-05,2]
[333098440,1721863832280,-654.12,9.481e-05,2]
[333098441,1721863832292,-654.12,9.483e-05,2]
[333098442,1721863832301,-654.12,9.486e-05,2]
[333098443,1721863832310,-654.12,9.488e-05,2]
[333098444,1721863832319,-654.12,9.491e-05,2]
[333098445,1721863832329,-654.12,9.493e-05,2]
[333098446,1721863832338,-24332.74716632,9.493e-05,2]
[333098447,1721863832347,-654.12,9.496e-05,2]
[333098448,1721863832357,-654.12,9.498e-05,2]
[333098449,1721863832366,-654.12,9.501e-05,2]
[333098450,1721863832375,-654.12,9.503e-05,2]
[333098451,1721863832385,-15974.01,9.503e-05,2]
[333098452,1721863832394,-654.12,9.506e-05,2]
[333098453,1721863832403,-174.57,9.617e-05,2]
[333098454,1721863832412,-1616.77,9.627e-05,2]
[333098455,1721863832421,-321.34,9.67e-05,2]
[333098456,1721863832431,-150.99,9.67e-05,2]
[333098457,1721863832440,-5814.94,9.67e-05,2]
[333098458,1721863832449,-324.12,9.67e-05,2]
[333098459,1721863832458,-190.15,9.67e-05,2]
[333098460,1721863832468,-299.99,9.67e-05,2]
[333098461,1721863832477,-499.99,9.67e-05,2]
[333098462,1721863832487,-6349.58,9.67e-05,2]
[333098463,1721863832496,-150.0,9.863e-05,2]
[333098464,1721863832505,-400.0,9.9e-05,3]
[333098465,1721863832514,-1255.87355409,9.962e-05,2]
[333098466,1721863832524,-500.0,9.979e-05,2]
[333098467,1721863832535,-420.0,9.991e-05,2]
[333098468,1721863832546,-900.0,0.0001,3]
[333098469,1721863832556,-972.63,0.00010055,2]
[333098470,1721863832565,-1300.0,0.000101,3]
[333098471,1721863832574,-150.0,0.00010192,2]
[333098473,1721863832584,-529.96,0.00010192,2]
[333098474,1721863832593,-529.96,0.00010192,2]
[333098475,1721863832604,-529.96,0.00010192,2]
[333098476,1721863832613,-529.96,0.00010192,2]
[333098477,1721863832623,-524.83,0.00010192,2]
[333098478,1721863832634,-1800.0,0.000102,3]
[333098479,1721863832644,-427.2,0.00010217,2]
[333098480,1721863832654,-151.27753342,0.00010238,2]
[333098481,1721863832664,-2200.0,0.000103,3]
[333098482,1721863832673,-572.8,0.00010301,2]
[333098483,1721863832682,-212.7947,0.00010356,2]
[333098484,1721863832691,-5510.4007,0.00010393,2]
[333098485,1721863832701,-10695.7085,0.00010393,2]
[333098486,1721863832711,-31920.6944,0.00010393,2]
[333098487,1721863832721,-1853.6089,0.00010393,2]
[333098488,1721863832730,-400.0,0.000104,3]
[333098489,1721863832739,-255.0,0.00010422,2]
[333098490,1721863832749,-151.46993681,0.00010497,2]
[333098491,1721863832758,-400.0,0.000105,3]
[333098492,1721863832767,-150.12,0.0001055,2]
[333098493,1721863832776,-400.0,0.000106,3]
[333098494,1721863832785,-1645.687,0.00010676,2]
[333098495,1721863832797,-1074.0,0.00010676,2]
[333098496,1721863832806,-362.0,0.00010676,2]
[333098497,1721863832815,-1202.0,0.00010676,2]
[333098498,1721863832827,-5121.0,0.00010676,2]
[333098499,1721863832836,-1157.007,0.00010676,2]
[333098500,1721863832846,-400.0,0.000107,3]
[333098501,1721863832855,-155.15124641,0.00010726,2]
[333098502,1721863832864,-1102.43251673,0.00010759,2]
[333098503,1721863832874,-1129.58750134,0.00010759,2]
[333098504,1721863832883,-800.0,0.000108,3]
[333098505,1721863832892,-150.0,0.00010815,2]
[333098506,1721863832902,-165.5426615,0.00010858,2]
[333098507,1721863832911,-150.0,0.0001086,2]
[333098508,1721863832919,-150.0,0.00010866,2]
[333098509,1721863832929,-165.54266149,0.00010872,2]
[333098510,1721863832938,-220.97,0.00010877,3]
[333098511,1721863832948,-176.94035326,0.0001088,2]
[333098512,1721863832957,-31660.88940483,0.0001088,2]
[333098513,1721863832967,-165.54266149,0.00010886,2]
[333098514,1721863832976,-834.0113424,0.00010886,2]
[333098515,1721863832985,-420.98879583,0.00010886,2]
[333098516,1721863832994,-420.70541844,0.00010886,2]
[333098517,1721863833004,-150.0,0.00010887,2]
[333098518,1721863833014,-834.01134239,0.00010893,2]
[333098519,1721863833024,-420.98879583,0.00010893,2]
[333098520,1721863833033,-1852.65982674,0.00010899,2]
[333098521,1721863833051,-1852.65982674,0.00010899,2]
[333098522,1721863833065,-1852.65982674,0.000109,2]
[333098523,1721863833075,-225.0,0.000109,2]
[333098524,1721863833085,-357.0,0.000109,2]
[333098525,1721863833095,-1000.0,0.000109,2]
[333098526,1721863833107,-1000.0,0.000109,2]
[333098527,1721863833118,-834.01134239,0.000109,2]
[333098528,1721863833128,-420.98879583,0.000109,2]
[333098529,1721863833140,-422.32567054,0.00010958,2]
[333098530,1721863833150,-507.0217405,0.00010958,2]
[333098531,1721863833160,-500.0,0.00010958,2]
[333098532,1721863833170,-500.0,0.00010958,2]
[333098533,1721863833180,-500.0,0.00010958,2]
[333098534,1721863833190,-504.25412256,0.00010958,2]
[333098535,1721863833201,-505.5600664,0.00010958,2]
[333098536,1721863833211,-503.23790448,0.00010958,2]
[333098537,1721863833221,-500.0,0.00010958,2]
[333098538,1721863833231,-500.0,0.00010958,2]
[333098539,1721863833241,-500.0,0.00010958,2]
[333098540,1721863833250,-280.50546148,0.00010958,2]
[333098541,1721863833259,-500.0,0.00010958,2]
[333098542,1721863833268,-500.0,0.00010958,2]
[333098543,1721863833277,-509.86238553,0.00010958,2]
[333098544,1721863833286,-500.0,0.00010958,2]
[333098545,1721863833299,-505.49703351,0.00010958,2]
[333098546,1721863833308,-504.42478549,0.00010958,2]
[333098547,1721863833317,-500.0,0.00010958,2]
[333098548,1721863833326,-501.56904189,0.00010958,2]
[333098549,1721863833564,-500.0,0.00010958,2]
[333098550,1721863833574,-500.0,0.00010958,2]
[333098551,1721863833584,-500.0,0.00010958,2]
[333098552,1721863833594,-509.2557006,0.00010958,2]
[333098553,1721863833604,-500.0,0.00010958,2]
[333098554,1721863833613,-455.42833542,0.00010958,2]
[333098555,1721863833622,-505.74326157,0.00010958,2]
[333098556,1721863833632,-500.0,0.00010958,2]
[333098557,1721863833641,-280.43291733,0.00010958,2]
[333098558,1721863833651,-496.38155702,0.00010958,2]
[333098559,1721863833660,-500.0,0.00010958,2]
[333098560,1721863833669,-500.0,0.00010958,2]
[333098561,1721863833679,-500.0,0.00010958,2]
[333098562,1721863833688,-500.0,0.00010958,2]
[333098563,1721863833698,-502.95237814,0.00010958,2]
[333098564,1721863833707,-495.87066342,0.00010958,2]
[333098565,1721863833717,-194.56639167,0.00010958,2]
[333098566,1721863833727,-500.0,0.00010958,2]
[333098567,1721863833736,-521.93683158,0.00010958,2]
[333098568,1721863833745,-500.0,0.00010958,2]
[333098569,1721863833754,-228.86102639,0.00010958,2]
[333098570,1721863833764,-500.0,0.00010958,2]
[333098571,1721863833774,-502.99877578,0.00010958,2]
[333098572,1721863833783,-500.0,0.00010958,2]
[333098573,1721863833793,-500.0,0.00010958,2]
[333098574,1721863833803,-500.0,0.00010958,2]
[333098575,1721863833812,-500.0,0.00010958,2]
[333098576,1721863833822,-500.0,0.00010958,2]
[333098577,1721863833831,-500.0,0.00010958,2]
[333098578,1721863833841,-500.0,0.00010958,2]
[333098579,1721863833851,-500.0,0.00010958,2]
[333098580,1721863833860,-500.0,0.00010958,2]
[333098581,1721863833870,-500.0,0.00010958,2]
[333098582,1721863833879,-500.0,0.00010958,2]
[333098583,1721863833889,-523.76158217,0.00010958,2]
[333098584,1721863833899,-500.0,0.00010958,2]
[333098585,1721863833908,-500.0,0.00010958,2]
[333098586,1721863833918,-503.85288934,0.00010958,2]
[333098587,1721863833928,-500.0,0.00010958,2]
[333098588,1721863833938,-500.0,0.00010958,2]
[333098589,1721863833948,-264.48598469,0.00010958,2]
[333098590,1721863833958,-368.7964904,0.00010958,2]
[333098591,1721863833968,-500.0,0.00010958,2]
[333098592,1721863833978,-500.0,0.00010958,2]
[333098593,1721863833987,-500.0,0.00010958,2]
[333098594,1721863833997,-505.16042724,0.00010958,2]
[333098595,1721863834007,-500.0,0.00010958,2]
[333098596,1721863834017,-500.0,0.00010958,2]
[333098597,1721863834027,-500.0,0.00010958,2]
[333098598,1721863834036,-500.0,0.00010958,2]
[333098599,1721863834047,-500.0,0.00010958,2]
[333098600,1721863834057,-500.0,0.00010958,2]
[333098601,1721863834070,-535.1,0.00010958,2]
[333098602,1721863834079,-500.0,0.00010958,2]
[333098603,1721863834088,-500.0,0.00010958,2]
[333098604,1721863834097,-500.0,0.00010958,2]
[333098605,1721863834107,-500.0,0.00010958,2]
[333098606,1721863834116,-500.0,0.00010958,2]
[333098607,1721863834125,-456.56257486,0.00010958,2]
[333098608,1721863834136,-500.0,0.00010958,2]
[333098609,1721863834145,-504.41339817,0.00010958,2]
[333098610,1721863834155,-500.0,0.00010958,2]
[333098611,1721863834165,-500.0,0.00010958,2]
[333098612,1721863834174,-505.96984518,0.00010958,2]
[333098613,1721863834184,-507.52717043,0.00010958,2]
[333098614,1721863834193,-500.0,0.00010958,2]
[333098615,1721863834203,-500.0,0.00010958,2]
[333098616,1721863834213,-519.67382664,0.00010958,2]
[333098617,1721863834222,-350.09965206,0.00010958,2]
[333098618,1721863834232,-500.0,0.00010958,2]
[333098619,1721863834241,-500.0,0.00010958,2]
[333098620,1721863834251,-500.0,0.00010958,2]
[333098621,1721863834260,-196.24662004,0.00010958,2]
[333098622,1721863834269,-500.0,0.00010958,2]
[333098623,1721863834278,-500.0,0.00010958,2]
[333098624,1721863834288,-500.0,0.00010958,2]
[333098625,1721863834298,-500.0,0.00010958,2]
[333098626,1721863834307,-500.0,0.00010958,2]
[333098627,1721863834317,-500.0,0.00010958,2]
[333098628,1721863834326,-500.0,0.00010958,2]
[333098629,1721863834335,-500.0,0.00010958,2]
[333098630,1721863834346,-500.0,0.00010958,2]
[333098631,1721863834355,-500.0,0.00010958,2]
[333098632,1721863834364,-500.0,0.00010958,2]
[333098633,1721863834374,-500.0,0.00010958,2]
[333098634,1721863834383,-500.0,0.00010958,2]
[333098635,1721863834392,-533.9971291,0.00010958,2]
[333098636,1721863834402,-500.0,0.00010958,2]
[333098637,1721863834411,-500.0,0.00010958,2]
[333098638,1721863834421,-520.89616461,0.00010958,2]
[333098639,1721863834430,-500.0,0.00010958,2]
[333098640,1721863834440,-500.0,0.00010958,2]
[333098641,1721863834449,-500.0,0.00010958,2]
[333098642,1721863834459,-500.0,0.00010958,2]
[333098643,1721863834468,-500.0,0.00010958,2]
[333098644,1721863834477,-500.0,0.00010958,2]
[333098645,1721863834486,-500.0,0.00010958,2]
[333098646,1721863834496,-525.55,0.00010958,2]
[333098647,1721863834505,-500.0,0.00010958,2]
[333098648,1721863834515,-500.0,0.00010958,2]
[333098649,1721863834524,-500.0,0.00010958,2]
[333098650,1721863834534,-573.92,0.00010958,2]
[333098651,1721863834544,-617.2704662,0.00010958,2]
[333098652,1721863834553,-500.0,0.00010958,2]
[333098653,1721863834562,-546.39,0.00010958,2]
[333098654,1721863834571,-546.39,0.00010958,2]
[333098655,1721863834580,-906.5,0.00010958,2]
[333098656,1721863834589,-2835.44,0.00010958,2]
[333098657,1721863834599,-2835.44,0.00010958,2]
[333098658,1721863834608,-500.0,0.00010958,2]
[333098659,1721863834617,-500.0,0.00010958,2]
[333098660,1721863834626,-500.0,0.00010958,2]
[333098661,1721863834636,-2092.67,0.00010958,2]
[333098662,1721863834644,-514.33370119,0.00010958,2]
[333098663,1721863834654,-500.0,0.00010958,2]
[333098664,1721863834663,-500.0,0.00010958,2]
[333098665,1721863834673,-500.0,0.00010958,2]
[333098666,1721863834682,-500.0,0.00010958,2]
[333098667,1721863834691,-536.13622303,0.00010958,2]
[333098668,1721863834701,-500.0,0.00010958,2]
[333098669,1721863834710,-500.0,0.00010958,2]
[333098670,1721863834721,-500.0,0.00010958,2]
[333098671,1721863834730,-500.0,0.00010958,2]
[333098672,1721863834740,-500.0,0.00010958,2]
[333098673,1721863834749,-500.0,0.00010958,2]
[333098674,1721863834758,-500.0,0.00010958,2]
[333098675,1721863834768,-500.0,0.00010958,2]
[333098676,1721863834778,-500.0,0.00010958,2]
[333098677,1721863834787,-527.60598097,0.00010958,2]
[333098678,1721863834798,-500.0,0.00010958,2]
[333098679,1721863834807,-500.0,0.00010958,2]
[333098680,1721863834817,-500.0,0.00010958,2]
[333098681,1721863834826,-500.0,0.00010958,2]
[333098682,1721863834835,-500.0,0.00010958,2]
[333098683,1721863834844,-500.0,0.00010958,2]
[333098684,1721863834854,-500.0,0.00010958,2]
[333098685,1721863834864,-500.0,0.00010958,2]
[333098686,1721863834873,-535.33923868,0.00010958,2]
[333098687,1721863834883,-500.0,0.00010958,2]
[333098688,1721863834892,-250.0,0.00010959,2]
[333098689,1721863834903,-175.1750605,0.00010972,2]
[333098690,1721863834912,-40847.4901443,0.00010972,2]
[333098691,1721863834922,-1979.350549,0.00010972,2]
[333098692,1721863834931,-3933.3881738,0.00010972,2]
[333098693,1721863834941,-5223.20653629,0.00010977,2]
[333098694,1721863834950,-581.3693923,0.00010978,2]
[333098695,1721863834959,-334.77377776,0.00010978,2]
[333098696,1721863834969,-500.0,0.00010978,2]
[333098697,1721863834978,-500.0,0.00010978,2]
[333098698,1721863834987,-500.0,0.00010978,2]
[333098699,1721863834997,-576.52844523,0.00010978,2]
[333098700,1721863835006,-2092.67,0.00010978,2]
[333098701,1721863835015,-432.42,0.00010978,2]
[333098702,1721863835025,-500.0,0.00010978,2]
[333098703,1721863835034,-500.0,0.00010978,2]
[333098704,1721863835045,-500.0,0.00010978,2]
[333098705,1721863835055,-500.0,0.00010978,2]
[333098706,1721863835068,-1049.12485799,0.00010979,2]
[333098707,1721863835078,-300.31921246,0.00010979,2]
[333098708,1721863835087,-3000.0,0.00010979,2]
[333098709,1721863835097,-500.0,0.00010979,2]
[333098710,1721863835107,-500.0,0.00010979,2]
[333098711,1721863835117,-500.0,0.00010979,2]
[333098712,1721863835126,-500.0,0.00010979,2]
[333098713,1721863835136,-500.0,0.00010979,2]
[333098714,1721863835146,-500.0,0.00010979,2]
[333098715,1721863835156,-500.0,0.00010979,2]
[333098716,1721863835165,-647.82,0.00010979,2]
[333098717,1721863835174,-500.0,0.00010979,2]
[333098718,1721863835183,-500.0,0.00010979,2]
[333098719,1721863835192,-541.80004122,0.00010979,2]
[333098720,1721863835202,-500.0,0.00010979,2]
[333098721,1721863835211,-381.74,0.00010979,2]
[333098722,1721863835221,-500.0,0.00010979,2]
[333098723,1721863835230,-500.0,0.00010979,2]
[333098724,1721863835239,-500.0,0.00010979,2]
[333098725,1721863835249,-500.0,0.00010979,2]
[333098726,1721863835258,-500.0,0.00010979,2]
[333098727,1721863835268,-500.0,0.00010979,2]
[333098728,1721863835277,-500.0,0.00010979,2]
[333098729,1721863835287,-500.0,0.00010979,2]
[333098730,1721863835297,-500.0,0.00010979,2]
[333098731,1721863835307,-500.0,0.00010979,2]
[333098732,1721863835316,-500.0,0.00010979,2]
[333098733,1721863835326,-500.0,0.00010979,2]
[333098734,1721863835335,-500.0,0.00010979,2]
[333098735,1721863835345,-500.0,0.00010979,2]
[333098736,1721863835354,-500.0,0.00010979,2]
[333098737,1721863835364,-500.0,0.00010979,2]
[333098738,1721863835374,-500.0,0.00010979,2]
[333098739,1721863835383,-500.0,0.00010979,2]
[333098740,1721863835393,-500.0,0.00010979,2]
[333098741,1721863835402,-500.0,0.00010979,2]
[333098742,1721863835412,-500.0,0.00010979,2]
[333098743,1721863835421,-500.0,0.00010979,2]
[333098744,1721863835431,-500.0,0.00010979,2]
[333098745,1721863835440,-500.0,0.00010979,2]
[333098746,1721863835449,-500.0,0.00010979,2]
[333098747,1721863835459,-500.0,0.00010979,2]
[333098748,1721863835469,-500.0,0.00010979,2]
[333098749,1721863835478,-500.0,0.00010979,2]
[333098750,1721863835488,-500.0,0.00010979,2]
[333098751,1721863835497,-500.0,0.00010979,2]
[333098752,1721863835506,-500.0,0.00010979,2]
[333098753,1721863835516,-500.0,0.00010979,2]
[333098754,1721863835526,-500.0,0.00010979,2]
[333098755,1721863835536,-500.0,0.00010979,2]
[333098756,1721863835548,-550.20493143,0.00010979,2]
[333098757,1721863835557,-155.18,0.00010979,2]
[333098758,1721863835567,-500.0,0.00010979,2]
[333098759,1721863835577,-500.0,0.00010979,2]
[333098760,1721863835586,-500.0,0.00010979,2]
[333098761,1721863835596,-500.0,0.00010979,2]
[333098762,1721863835606,-500.0,0.00010979,2]
[333098763,1721863835615,-500.0,0.00010979,2]
[333098764,1721863835624,-500.0,0.00010979,2]
[333098765,1721863835634,-500.0,0.00010979,2]
[333098766,1721863835643,-546.39,0.00010979,2]
[333098767,1721863835653,-546.39,0.00010979,2]
[333098768,1721863835662,-546.39,0.00010979,2]
[333098769,1721863835671,-546.39,0.00010979,2]
[333098770,1721863835681,-546.39,0.00010979,2]
[333098771,1721863835691,-546.39,0.00010979,2]
[333098772,1721863835701,-906.5,0.00010979,2]
[333098773,1721863835710,-906.5,0.00010979,2]
[333098774,1721863835720,-906.5,0.00010979,2]
[333098775,1721863835730,-906.5,0.00010979,2]
[333098776,1721863835739,-546.39,0.00010979,2]
[333098777,1721863835749,-906.5,0.00010979,2]
[333098778,1721863835759,-546.39,0.00010979,2]
[333098779,1721863835768,-906.5,0.00010979,2]
[333098780,1721863835778,-546.39,0.00010979,2]
[333098781,1721863835787,-906.5,0.00010979,2]
[333098782,1721863835800,-546.39,0.00010979,2]
[333098783,1721863835809,-906.5,0.00010979,2]
[333098784,1721863835819,-2835.44,0.00010979,2]
[333098785,1721863835829,-546.39,0.00010979,2]
[333098786,1721863835839,-906.5,0.00010979,2]
[333098787,1721863835849,-546.39,0.00010979,2]
[333098788,1721863835859,-2835.44,0.00010979,2]
[333098789,1721863835868,-906.5,0.00010979,2]
[333098790,1721863835878,-2835.44,0.00010979,2]
[333098791,1721863835888,-906.5,0.00010979,2]
[333098792,1721863835898,-906.5,0.00010979,2]
[333098793,1721863835908,-2835.44,0.00010979,2]
[333098794,1721863835918,-2835.44,0.00010979,2]
[333098795,1721863835928,-2835.44,0.00010979,2]
[333098796,1721863835938,-2835.44,0.00010979,2]
[333098797,1721863835947,-2835.44,0.00010979,2]
[333098798,1721863835957,-2835.44,0.00010979,2]
[333098799,1721863835967,-2835.44,0.00010979,2]
[333098800,1721863835976,-2835.44,0.00010979,2]
[333098801,1721863835986,-500.0,0.00010979,2]
[333098802,1721863835996,-500.0,0.00010979,2]
[333098803,1721863836005,-500.0,0.00010979,2]
[333098804,1721863836015,-500.0,0.00010979,2]
[333098805,1721863836025,-500.0,0.00010979,2]
[333098806,1721863836035,-500.0,0.00010979,2]
[333098807,1721863836046,-500.0,0.00010979,2]
[333098808,1721863836061,-500.0,0.00010979,2]
[333098809,1721863836071,-500.0,0.00010979,2]
[333098810,1721863836081,-500.0,0.00010979,2]
[333098811,1721863836091,-500.0,0.00010979,2]
[333098812,1721863836101,-2092.67,0.00010979,2]
[333098813,1721863836111,-2092.67,0.00010979,2]
[333098814,1721863836120,-2092.67,0.00010979,2]
[333098815,1721863836130,-2092.67,0.00010979,2]
[333098816,1721863836142,-500.0,0.00010979,2]
[333098817,1721863836152,-2092.67,0.00010979,2]
[333098818,1721863836161,-500.0,0.00010979,2]
[333098819,1721863836171,-2092.67,0.00010979,2]
[333098820,1721863836180,-2092.67,0.00010979,2]
[333098821,1721863836190,-500.0,0.00010979,2]
[333098822,1721863836199,-2092.67,0.00010979,2]
[333098823,1721863836209,-500.0,0.00010979,2]
[333098824,1721863836218,-500.0,0.00010979,2]
[333098825,1721863836228,-2092.67,0.00010979,2]
[333098826,1721863836238,-639.06761221,0.00010979,2]
[333098827,1721863836247,-2092.67,0.00010979,2]
[333098828,1721863836258,-2092.67,0.00010979,2]
[333098829,1721863836268,-500.0,0.00010979,2]
[333098830,1721863836278,-500.0,0.00010979,2]
[333098831,1721863836287,-500.0,0.00010979,2]
[333098832,1721863836298,-500.0,0.00010979,2]
[333098833,1721863836307,-500.0,0.00010979,2]
[333098834,1721863836317,-500.0,0.00010979,2]
[333098835,1721863836327,-500.0,0.00010979,2]
[333098836,1721863836337,-500.0,0.00010979,2]
[333098837,1721863836347,-500.0,0.00010979,2]
[333098838,1721863836356,-500.0,0.00010979,2]
[333098839,1721863836366,-396.88,0.00010979,2]
[333098840,1721863836376,-500.0,0.00010979,2]
[333098841,1721863836386,-500.0,0.00010979,2]
[333098842,1721863836395,-500.0,0.00010979,2]
[333098843,1721863836405,-500.0,0.00010979,2]
[333098844,1721863836415,-500.0,0.00010979,2]
[333098845,1721863836424,-500.0,0.00010979,2]
[333098846,1721863836433,-597.81607366,0.00010979,2]
[333098847,1721863836443,-390.6234166,0.00010979,2]
[333098848,1721863836452,-500.0,0.00010979,2]
[333098849,1721863836462,-500.0,0.00010979,2]
[333098850,1721863836472,-500.0,0.00010979,2]
[333098851,1721863836482,-500.0,0.00010979,2]
[333098852,1721863836492,-500.0,0.00010979,2]
[333098853,1721863836501,-500.0,0.00010979,2]
[333098854,1721863836511,-500.0,0.00010979,2]
[333098855,1721863836521,-609.9,0.00010979,2]
[333098856,1721863836530,-500.0,0.00010979,2]
[333098857,1721863836540,-500.0,0.00010979,2]
[333098858,1721863836549,-500.0,0.00010979,2]
[333098859,1721863836559,-361097.8675863,0.0001098,4]
[333098860,1721863836575,-1230.78807392,0.0001098,4]
[333098861,1721863836586,-16609.23592467,0.0001098,4]
[333098862,1721863836598,-424.71047742,0.0001098,4]
[333098863,1721863836609,-1517.42729465,0.0001098,4]
[333098864,1721863836620,-1577.90951174,0.0001098,4]
[333098865,1721863836979,-500.0,0.00010979,2]
[333098866,1721863836990,-192.42243522,0.0001098,4]
[333098867,1721863837002,-1075.9549519,0.0001098,4]
[333098868,1721863837014,-3383.3,0.0001098,4]
[333098869,1721863837430,-939.82724979,0.0001098,4]
[333098870,1721863837445,-5896.85101028,0.0001098,4]
[333098871,1721863837462,-5962.64295461,0.0001098,4]
[333098872,1721863837802,-1378.29577402,0.0001098,4]
[333098873,1721863837818,-277.50880542,0.0001098,4]
[333098874,1721863837831,-1004.69421276,0.0001098,4]
[333098875,1721863837985,-421.55839924,0.0001098,4]
[333098876,1721863838000,-3494.76952503,0.0001098,4]
[333098918,1721863838879,-160.04731693,9.962e-05,2]
[333098920,1721863838890,-1829.0,0.00010676,2]
[333098922,1721863838900,-1254.0,0.00010676,2]
[333098924,1721863838911,-420.70541842,0.00010893,2]
[333098926,1721863838921,-420.70541842,0.000109,2]
[333098928,1721863838933,-500.0,0.00010979,2]
[333098930,1721863838945,-500.0,0.00010979,2]
[333098932,1721863838956,-500.0,0.00010979,2]
[333098934,1721863838966,-593.89291561,0.00010979,2]
[333098936,1721863838977,-2200.03350926,0.0001098,4]